bitfinex-derivatives/quotes_SOLF0:USTF0_20250625
["timestamp","ask_amount","ask_price","bid_price","bid_amount"]
[1750863004765,6.8341,146.25,146.2,6.8361]
[1750863004962,7.14233936,146.25,146.2,6.8361]
[1750863005161,7.14233936,146.25,146.17,69.14233936]
[1750863006452,7.14233936,146.25,146.17,77.58765101]
[1750863007064,7.14233936,146.25,146.17,62.0]
[1750863007263,6.835,146.23,146.19,6.8363]
[1750863007567,7.14233936,146.25,146.17,62.0]
[1750863007870,6.8345,146.24,146.17,62.0]
[1750863008169,6.8345,146.24,146.16,8.44531165]
[1750863008360,6.8345,146.24,146.17,8.44531165]
[1750863008664,6.8349,146.23,146.16,8.44531165]
[1750863008868,6.8349,146.23,146.19,6.8363]
[1750863009065,50.78,146.28,146.21,7.14233936]
[1750863009459,50.78,146.28,146.25,6.8335]
[1750863010568,50.78,146.28,146.26,6.8333]
[1750863010772,50.78,146.28,146.22,8.44531165]
[1750863010960,50.78,146.28,146.24,6.8339]
[1750863011360,6.8332,146.27,146.24,6.8339]
[1750863011964,50.78,146.28,146.21,9.49073936]
[1750863013165,50.78,146.28,146.22,8.44531165]
[1750863013369,6.8329,146.27,146.24,6.834]
[1750863013669,57.92233936,146.28,146.21,2.3484]
[1750863013872,7.14233936,146.26,146.19,8.44531165]
[1750863014177,7.14233936,146.26,146.2,6.8358]
[1750863014368,7.14233936,146.24,146.16,61.10531165]
[1750863014674,6.8356,146.22,146.15,159.42459041]
[1750863015371,59.4949,146.23,146.19,6.8363]
[1750863015766,52.66,146.23,146.19,6.8363]
[1750863016068,52.66,146.23,146.15,166.56692977]
[1750863016274,7.14233936,146.2,146.13,8.44531165]
[1750863016470,7.14233936,146.18,146.1,8.44531165]
[1750863016665,52.66,146.18,146.1,8.44531165]
[1750863016872,52.66,146.18,146.11,8.44531165]
[1750863017066,52.66,146.18,146.11,15.58765101]
[1750863017871,6.8376,146.17,146.14,6.8387]
[1750863018075,6.8376,146.17,146.11,8.44531165]
[1750863018076,7.14233936,146.15,146.07,13.08261165]
[1750863018268,7.14233936,146.13,146.09,6.8413]
[1750863018467,7.14233936,146.13,146.07,4.6373]
[1750863018468,59.80233936,146.13,146.07,4.6373]
[1750863018871,59.80233936,146.13,146.06,8.44531165]
[1750863019178,7.14233936,146.09,146.04,2.2812]
[1750863019370,7.14233936,146.07,146.04,9.1247]
[1750863019676,7.14233936,146.07,146.04,2.2812]
[1750863020373,7.14233936,146.08,146.04,2.2812]
[1750863020972,4.90099802,146.12,146.04,2.2812]
[1750863021170,13.98323936,146.1,146.04,2.2812]
[1750863021379,4.90099802,146.12,146.04,2.2812]
[1750863021582,13.98283936,146.11,146.07,6.8419]
[1750863021977,13.98283936,146.11,146.04,2.2812]
[1750863021978,7.14233936,146.11,146.04,2.2812]
[1750863022475,59.80233936,146.13,146.04,10.72651165]
[1750863023377,66.64213936,146.13,146.09,6.841]
[1750863023577,66.64213936,146.13,146.04,10.72651165]
[1750863024277,66.64213936,146.13,146.1,6.8405]
[1750863024475,66.64213936,146.13,146.04,10.72651165]
[1750863024476,52.66,146.13,146.05,7.14233936]
[1750863024670,52.66,146.13,146.05,15.58765101]
[1750863024871,52.66,146.13,146.11,6.84]
[1750863025081,52.66,146.13,146.05,15.58765101]
[1750863025580,52.66,146.13,146.06,62.0]
[1750863026879,52.66,146.13,146.11,6.84]
[1750863027274,52.66,146.13,146.06,62.0]
[1750863027892,7.14233936,146.12,146.06,62.0]
[1750863028081,7.14233936,146.12,146.09,6.8412]
[1750863028482,13.98253936,146.12,146.09,6.8412]
[1750863028676,7.14233936,146.12,146.09,6.8412]
[1750863028877,13.98343936,146.1,146.04,54.9612]
[1750863029279,13.98343936,146.1,146.07,6.8419]
[1750863029585,6.8402,146.12,146.04,2.2812]
[1750863029778,59.80233936,146.13,146.04,9.42353936]
[1750863030281,6.8401,146.12,146.09,6.8411]
[1750863030778,13.98203936,146.13,146.04,9.42353936]
[1750863030975,13.98203936,146.13,146.1,6.8406]
[1750863031376,7.14233936,146.13,146.04,17.86885101]
[1750863031577,7.14233936,146.13,146.04,10.72651165]
[1750863031777,7.14233936,146.13,146.05,69.14233936]
[1750863032079,7.14233936,146.13,146.05,120.10233936]
[1750863032885,13.98203936,146.13,146.1,6.8408]
[1750863033190,7.14233936,146.13,146.05,112.96]
[1750863033377,6.8401,146.12,146.09,6.8412]
[1750863033579,7.14233936,146.11,146.04,2.2812]
[1750863034586,7.14233936,146.11,146.08,6.8415]
[1750863034995,13.98303936,146.11,146.08,6.8415]
[1750863035286,7.14233936,146.11,146.07,6.842]
[1750863035492,6.8412,146.1,146.07,6.842]
[1750863035987,7.14233936,146.11,146.08,6.8417]
[1750863036487,7.14233936,146.11,146.04,2.2812]
[1750863036685,7.14233936,146.13,146.05,69.14233936]
[1750863036885,13.98203936,146.13,146.05,69.14233936]
[1750863037188,13.98203936,146.13,146.1,6.8408]
[1750863037596,50.96,146.14,146.05,69.14233936]
[1750863037795,50.96,146.14,146.07,7.14233936]
[1750863038093,7.14233936,146.17,146.08,4.6743]
[1750863038483,7.14233936,146.17,146.09,7.14233936]
[1750863038790,6.8391,146.14,146.11,6.8401]
[1750863040089,6.8391,146.14,146.1,6.8406]
[1750863040389,7.14233936,146.15,146.08,4.6743]
[1750863040588,7.14233936,146.13,146.08,4.6743]
[1750863040790,7.14233936,146.13,146.08,11.5158]
[1750863040991,6.8406,146.11,146.08,11.5158]
[1750863041186,58.10233936,146.13,146.08,4.6743]
[1750863042899,58.10233936,146.13,146.08,6.8415]
[1750863043091,6.8411,146.1,146.04,2.2812]
[1750863043492,7.14233936,146.09,146.04,2.2812]
[1750863043890,7.14233936,146.09,146.05,6.8429]
[1750863044294,6.843,146.06,145.99,15.58765101]
[1750863044492,6.843,146.06,146.03,6.8438]
[1750863044693,6.843,146.06,145.99,22.63275101]
[1750863045284,7.14233936,146.07,145.99,15.49041165]
[1750863045588,7.14233936,146.05,145.99,7.0451]
[1750863045788,7.14233936,146.05,146.02,6.8444]
[1750863046293,7.14233936,146.05,145.99,69.0451]
[1750863046794,13.98573936,146.05,145.99,69.0451]
[1750863046991,7.14233936,146.05,145.99,7.0451]
[1750863047396,13.98563936,146.05,146.02,6.8443]
[1750863047796,6.844,146.04,146.01,6.8447]
[1750863047993,7.14233936,146.03,145.95,8.44531165]
[1750863048193,7.14233936,146.03,145.95,6.7441]
[1750863048793,7.14233936,146.01,145.95,6.7441]
[1750863048989,7.14233936,146.02,145.95,6.7441]
[1750863049399,50.96,146.03,145.95,6.7441]
[1750863049900,50.96,146.03,145.96,62.0]
[1750863050592,50.96,146.03,146.02,6.8446]
[1750863051096,2.4279,146.09,145.99,58.12233936]
[1750863051097,13.98383936,146.09,145.99,58.12233936]
[1750863051303,6.8415,146.09,146.0,7.14233936]
[1750863051692,6.8415,146.09,146.06,6.8427]
[1750863051887,13.98443936,146.08,146.01,2.2334]
[1750863052491,7.14233936,146.06,146.01,2.2334]
[1750863052900,7.14233936,146.06,145.99,50.98]
[1750863053293,7.14233936,146.04,145.98,157.62]
[1750863053806,7.14233936,146.02,145.96,2.2334]
[1750863054801,6.8462,145.99,145.96,6.8474]
[1750863055098,7.14233936,146.0,145.92,6.959]
[1750863055296,50.98,146.0,145.93,6.8485]
[1750863055493,7.14233936,145.97,145.93,6.8485]
[1750863055900,7.14233936,145.97,145.91,6.8493]
[1750863056103,7.14233936,145.95,145.88,10.74368996]
[1750863056296,6.8486,145.94,145.87,8.44598996]
[1750863056602,50.98,145.95,145.87,8.44598996]
[1750863056804,50.98,145.95,145.88,7.14233936]
[1750863056997,50.98,145.95,145.93,6.8485]
[1750863058103,50.98,145.95,145.94,6.8483]
[1750863059096,6.846,145.99,145.9,15.58832932]
[1750863059097,51.0,145.99,145.9,15.58832932]
[1750863059295,51.0,145.99,145.9,8.44598996]
[1750863059497,13.98933936,145.97,145.94,6.8481]
[1750863059701,7.14233936,145.97,145.94,6.8481]
[1750863060009,7.14233936,145.97,145.91,2.3406]
[1750863060705,7.14233936,145.99,145.91,2.3406]
[1750863060914,7.14233936,145.99,145.92,4.5902]
[1750863061296,7.14233936,145.95,145.9,8.44598996]
[1750863061497,7.14233936,145.91,145.85,6.9458]
[1750863061701,7.14233936,145.89,145.82,8.44598996]
[1750863061906,7.14233936,145.87,145.8,8.44598996]
[1750863062308,7.14233936,145.89,145.81,62.0]
[1750863062802,6.8522,145.86,145.83,6.8532]
[1750863063101,7.14233936,145.86,145.79,6.9458]
[1750863063512,13.99453936,145.86,145.79,6.9458]
[1750863063702,7.14233936,145.86,145.79,6.9458]
[1750863064104,7.14233936,145.86,145.83,6.8532]
[1750863064308,7.14233936,145.86,145.79,6.9458]
[1750863064609,49.82,145.85,145.79,6.9458]
[1750863065108,56.6726,145.85,145.82,6.8538]
[1750863065304,49.82,145.85,145.79,6.9458]
[1750863065610,56.6729,145.85,145.82,6.8537]
[1750863066505,56.96233936,145.9,145.8,7.14233936]
[1750863066704,56.96233936,145.9,145.79,6.9458]
[1750863066901,56.96233936,145.9,145.8,7.14233936]
[1750863067410,63.81293936,145.9,145.86,6.8518]
[1750863067915,56.96233936,145.9,145.8,7.14233936]
[1750863068205,13.99383936,145.88,145.8,7.14233936]
[1750863068606,7.14233936,145.88,145.79,6.9458]
[1750863069100,6.8519,145.87,145.79,6.9458]
[1750863069304,7.14233936,145.88,145.79,6.9458]
[1750863069507,7.14233936,145.86,145.83,6.8532]
[1750863069711,7.14233936,145.86,145.79,6.9458]
[1750863070309,7.14233936,145.84,145.79,6.9458]
[1750863070912,7.14233936,145.86,145.79,6.9458]
[1750863072214,7.14233936,145.84,145.79,6.9458]
[1750863072611,13.99563936,145.84,145.81,6.8541]
[1750863072998,7.14233936,145.84,145.78,62.0]
[1750863073200,7.14233936,145.82,145.79,6.8552]
[1750863073406,7.14233936,145.82,145.74,49.84]
[1750863073705,49.84,145.85,145.74,49.84]
[1750863073706,2.275,145.84,145.74,49.84]
[1750863074012,7.14233936,145.84,145.76,7.14233936]
[1750863074312,49.84,145.85,145.76,7.14233936]
[1750863075306,56.6928,145.85,145.82,6.8537]
[1750863075500,49.84,145.85,145.76,7.14233936]
[1750863075706,7.14233936,145.84,145.76,7.14233936]
[1750863075909,6.8545,145.81,145.74,49.84]
[1750863076109,7.14233936,145.82,145.75,62.0]
[1750863076305,7.14233936,145.8,145.72,6.8889]
[1750863076511,7.14233936,145.78,145.72,6.8889]
[1750863076809,7.14233936,145.79,145.72,6.8889]
[1750863077015,49.84,145.8,145.72,6.8889]
[1750863077314,56.98233936,145.8,145.72,6.8889]
[1750863077510,63.83753936,145.8,145.77,6.856]
[1750863077822,49.84,145.8,145.72,14.03123936]
[1750863078020,49.84,145.8,145.79,6.8554]
[1750863078317,648.50233936,145.86,145.76,7.14233936]
[1750863078505,698.34233936,145.86,145.76,7.14233936]
[1750863078701,691.2,145.86,145.78,7.14233936]
[1750863078914,49.84,145.86,145.79,2.2394]
[1750863079119,49.84,145.86,145.79,4.4914]
[1750863079309,49.84,145.86,145.8,62.0]
[1750863079710,49.84,145.86,145.83,6.8531]
[1750863080210,56.6924,145.86,145.83,6.8531]
[1750863080406,56.98233936,145.86,145.79,6.7102]
[1750863080614,56.98233936,145.86,145.79,2.2394]
[1750863080810,7.14233936,145.84,145.77,157.7]
[1750863081412,6.8535,145.83,145.77,157.7]
[1750863082621,6.8535,145.83,145.81,6.8544]
[1750863082917,6.8535,145.83,145.77,157.7]
[1750863083119,13.99553936,145.84,145.81,6.8542]
[1750863083319,56.98233936,145.86,145.77,157.7]
[1750863083522,49.84,145.86,145.78,62.0]
[1750863083717,6.8528,145.85,145.82,6.8537]
[1750863084114,56.98233936,145.86,145.78,62.0]
[1750863084319,49.84,145.86,145.78,69.14233936]
[1750863084521,49.84,145.86,145.8,7.14233936]
[1750863084725,49.84,145.86,145.84,6.8527]
[1750863084922,49.84,145.86,145.81,4.8073]
[1750863085519,49.86,145.9,145.82,7.14233936]
[1750863085718,6.8501,145.91,145.88,6.8508]
[1750863085914,691.22,145.93,145.84,7.14233936]
[1750863086116,691.22,145.93,145.86,7.14233936]
[1750863086424,49.86,145.97,145.9,7.14233936]
[1750863086827,56.7073,145.97,145.91,2.3239]
[1750863087126,49.86,145.97,145.91,2.3239]
[1750863087628,49.86,145.97,145.91,64.3239]
[1750863087824,49.86,145.97,145.94,6.848]
[1750863088123,641.5,146.0,145.91,64.3239]
[1750863088322,6.8468,145.98,145.94,6.8481]
[1750863088526,641.5,146.0,145.92,7.14233936]
[1750863089328,6.8462,145.99,145.95,6.8475]
[1750863089626,6.8462,145.99,145.92,7.14233936]
[1750863090224,6.8462,145.99,145.96,6.8473]
[1750863090528,648.3457,146.0,145.92,7.14233936]
[1750863090729,6.8457,146.0,145.97,6.8466]
[1750863090928,49.68,146.02,145.92,7.14233936]
[1750863091124,49.68,146.02,145.94,7.14233936]
[1750863091323,49.68,146.02,145.98,6.8461]
[1750863091522,49.68,146.02,145.95,2.3429]
[1750863092325,6.8458,146.0,145.97,6.8467]
[1750863092525,7.14233936,146.01,145.91,114.0039]
[1750863092732,7.14233936,146.01,145.92,7.14233936]
[1750863093730,7.14233936,145.99,145.91,114.0039]
[1750863093930,6.8462,145.99,145.91,114.0039]
[1750863094227,9.50693936,146.01,145.91,114.0039]
[1750863094427,6.8471,145.97,145.93,6.8485]
[1750863094623,9.50693936,146.01,145.91,52.0039]
[1750863094824,49.68,146.02,145.94,7.14233936]
[1750863095026,56.5248,146.02,145.94,7.14233936]
[1750863095623,49.68,146.02,145.94,7.14233936]
[1750863096229,56.5247,146.02,145.99,6.8457]
[1750863097230,6.8451,146.01,145.98,6.8463]
[1750863097622,7.14233936,146.01,145.92,164.60233936]
[1750863097827,7.14233936,145.99,145.92,157.46]
[1750863098132,13.98863936,145.99,145.92,157.46]
[1750863098326,6.8463,145.99,145.92,157.46]
[1750863098526,9.40163936,146.01,145.92,164.60233936]
[1750863098733,6.8457,146.0,145.92,164.60233936]
[1750863099037,7.14233936,146.01,145.92,164.60233936]
[1750863099227,6.8458,146.0,145.97,6.8466]
[1750863099636,7.14233936,146.01,145.92,164.60233936]
[1750863099821,6.8464,145.99,145.92,164.60233936]
[1750863100025,7.14233936,146.01,145.92,157.46]
[1750863100332,6.8467,145.98,145.95,6.8476]
[1750863100534,7.14233936,146.01,145.95,6.8476]
[1750863100935,7.14233936,146.01,145.94,6.8481]
[1750863101123,7.14233936,145.99,145.94,6.8481]
[1750863102232,7.14233936,145.99,145.95,6.8478]
[1750863102733,6.8467,145.98,145.91,52.0039]
[1750863103030,7.14233936,146.0,145.91,52.0039]
[1750863103238,6.8462,145.99,145.91,52.0039]
[1750863103437,6.8462,145.99,145.96,6.8471]
[1750863103640,7.14233936,146.0,145.96,6.8471]
[1750863103833,7.14233936,146.0,145.91,52.0039]
[1750863103834,6.8468,145.98,145.91,59.14623936]
[1750863104033,7.14233936,146.0,145.94,6.8482]
[1750863104433,7.14233936,146.0,145.94,6.848]
[1750863104628,7.14233936,146.0,145.91,52.0039]
[1750863105135,6.8467,145.98,145.95,6.8475]
[1750863105539,56.82233936,146.02,145.98,6.8462]
[1750863105836,56.82233936,146.02,145.92,7.14233936]
[1750863106233,6.8457,146.0,145.97,6.8466]
[1750863106431,56.82233936,146.02,145.92,7.14233936]
[1750863106836,6.8461,145.99,145.92,7.14233936]
[1750863107039,7.14233936,146.0,145.92,7.14233936]
[1750863107338,7.14233936,146.0,145.95,6.8476]
[1750863107535,7.14233936,146.0,145.91,52.0039]
[1750863107936,7.14233936,145.96,145.88,2.3887]
[1750863108137,7.14233936,145.94,145.88,2.3887]
[1750863108328,7.14233936,145.92,145.86,54.336]
[1750863108528,7.14233936,145.94,145.86,54.336]
[1750863108927,6.8481,145.95,145.92,6.849]
[1750863109132,56.78233936,145.96,145.87,62.0]
[1750863109538,49.64,145.96,145.87,62.0]
[1750863109834,56.78233936,145.96,145.87,62.0]
[1750863110045,6.8488,145.93,145.9,6.8498]
[1750863110232,56.78233936,145.96,145.86,61.47833936]
[1750863110538,6.8485,145.94,145.91,6.8495]
[1750863110734,56.78233936,145.96,145.86,54.336]
[1750863111129,6.8491,145.93,145.9,6.8501]
[1750863111330,7.14233936,145.94,145.86,54.336]
[1750863111636,6.8495,145.92,145.89,6.8504]
[1750863112136,6.849,145.93,145.9,6.8501]
[1750863112334,7.14233936,145.94,145.86,54.336]
[1750863112845,7.14233936,145.92,145.86,54.336]
[1750863113136,7.14233936,145.92,145.85,145.6429479]
[1750863113328,7.14233936,145.9,145.84,2.382]
[1750863114043,13.99263936,145.9,145.87,6.8513]
[1750863114748,56.5099,145.91,145.88,6.8511]
[1750863114935,49.66,145.91,145.84,9.52433936]
[1750863115235,49.66,145.91,145.9,6.8502]
[1750863115833,51.9702,145.95,145.9,6.8502]
[1750863116030,7.14233936,145.94,145.86,7.14233936]
[1750863116247,6.8495,145.92,145.89,6.8505]
[1750863116942,6.85,145.91,145.88,6.8509]
[1750863117138,7.14233936,145.94,145.84,9.52433936]
[1750863118148,7.14233936,145.94,145.9,6.8502]
[1750863118342,7.14233936,145.94,145.86,7.14233936]
[1750863118543,13.99093936,145.94,145.91,6.8495]
[1750863118850,49.66,145.95,145.86,7.14233936]
[1750863119044,56.5081,145.95,145.92,6.849]
[1750863119345,56.5081,145.95,145.86,7.14233936]
[1750863119747,56.5081,145.95,145.92,6.849]
[1750863120042,7.14233936,145.96,145.87,62.0]
[1750863120251,7.14233936,145.94,145.87,62.0]
[1750863120438,7.14233936,145.94,145.9,6.8499]
[1750863121040,6.8492,145.93,145.9,6.8499]
[1750863121348,7.14233936,145.94,145.84,17.97032932]
[1750863121548,7.14233936,145.92,145.84,2.382]
[1750863121735,7.14233936,145.9,145.82,51.6337]
[1750863122052,56.46233936,145.92,145.82,9.45603936]
[1750863122547,6.8509,145.89,145.82,2.3137]
[1750863123054,6.8511,145.88,145.82,2.3137]
[1750863123348,6.8511,145.88,145.83,62.0]
[1750863123547,56.46233936,145.92,145.83,62.0]
[1750863123548,7.14233936,145.91,145.83,62.0]
[1750863123746,7.14233936,145.91,145.82,2.3137]
[1750863124047,7.14233936,145.89,145.82,2.3137]
[1750863124349,7.14233936,145.89,145.84,6.8528]
[1750863124845,7.14233936,145.89,145.84,6.8526]
[1750863125452,6.8519,145.87,145.84,6.8526]
[1750863125844,6.8514,145.88,145.82,2.3137]
[1750863126149,7.14233936,145.89,145.82,2.3137]
[1750863126347,4.6324,145.91,145.82,2.3137]
[1750863126538,6.8517,145.87,145.82,2.3137]
[1750863127650,6.8521,145.86,145.82,2.3137]
[1750863128038,7.14233936,145.89,145.82,2.3137]
[1750863128241,2.2896,145.91,145.82,2.3137]
[1750863128449,51.6296,145.91,145.82,2.3137]
[1750863128647,6.8507,145.89,145.86,6.8517]
[1750863129046,7.14233936,145.9,145.82,10.75968996]
[1750863129346,6.8514,145.88,145.85,6.8521]
[1750863129549,6.8514,145.88,145.82,2.3137]
[1750863129942,7.14233936,145.9,145.82,2.3137]
[1750863130142,49.34,145.91,145.82,10.75968996]
[1750863130544,56.19,145.91,145.82,10.75968996]
[1750863130750,56.19,145.91,145.83,69.14233936]
[1750863130958,56.19,145.91,145.88,6.8508]
[1750863131249,49.34,145.91,145.83,69.14233936]
[1750863131455,49.34,145.91,145.89,6.8505]
[1750863131643,7.14233936,145.94,145.85,7.14233936]
[1750863131845,7.14233936,145.94,145.85,15.58832932]
[1750863132047,7.14233936,145.94,145.9,6.85]
[1750863132248,7.14233936,145.94,145.86,2.4215]
[1750863132249,6.849,145.93,145.86,2.4215]
[1750863132546,51.7719,145.95,145.87,7.14233936]
[1750863132547,49.34,145.95,145.87,7.14233936]
[1750863132747,6.8486,145.94,145.87,9.58383936]
[1750863132959,49.34,145.95,145.87,9.58383936]
[1750863133143,49.34,145.95,145.91,6.8496]
[1750863133345,6.8486,145.94,145.91,6.8496]
[1750863133747,6.8491,145.93,145.9,6.8501]
[1750863133951,7.14233936,145.94,145.87,2.4415]
[1750863134342,6.8495,145.92,145.89,6.8506]
[1750863134549,7.14233936,145.94,145.86,51.7615]
[1750863134751,7.14233936,145.92,145.86,51.7615]
[1750863135451,7.14233936,145.93,145.88,6.8509]
[1750863135651,7.14233936,145.93,145.86,51.7615]
[1750863135851,56.48233936,145.95,145.86,67.34982932]
[1750863136448,56.48233936,145.95,145.91,6.8495]
[1750863137058,56.48233936,145.95,145.9,6.8498]
[1750863137459,6.8493,145.92,145.9,6.8498]
[1750863138055,6.849,145.93,145.91,6.8497]
[1750863138262,56.48233936,145.95,145.91,6.8497]
[1750863138454,56.48233936,145.95,145.86,60.20748996]
[1750863138648,56.48233936,145.95,145.86,67.34982932]
[1750863138855,56.48233936,145.95,145.91,6.8497]
[1750863139057,49.34,145.95,145.88,7.14233936]
[1750863139251,49.34,145.95,145.88,9.59013936]
[1750863139756,56.1881,145.95,145.93,6.8487]
[1750863140064,49.34,145.95,145.93,6.8487]
[1750863140256,49.34,145.95,145.92,6.8491]
[1750863140865,56.1881,145.95,145.92,6.8491]
[1750863141560,49.34,145.95,145.91,6.8496]
[1750863141864,49.34,145.95,145.89,8.44598996]
[1750863141865,56.48233936,145.95,145.87,8.44598996]
[1750863142062,6.849,145.93,145.9,6.8498]
[1750863142663,6.8486,145.94,145.91,6.8494]
[1750863142866,49.34,145.95,145.89,8.44598996]
[1750863143068,6.8472,145.97,145.94,6.8479]
[1750863143261,641.02,145.98,145.94,6.8479]
[1750863143659,6.8473,145.97,145.94,6.8479]
[1750863143859,6.8473,145.97,145.9,72.86338996]
[1750863144167,641.02,145.98,145.91,8.44598996]
[1750863144168,647.8667,145.98,145.91,8.44598996]
[1750863144466,56.46233936,145.99,145.97,6.8468]
[1750863144467,49.32,145.99,145.97,6.8468]
[1750863144669,49.32,145.99,145.93,8.44598996]
[1750863144855,49.32,145.99,145.93,10.79698996]
[1750863145257,56.46233936,146.03,145.94,15.58832932]
[1750863145564,49.32,146.03,145.96,7.14233936]
[1750863145758,49.32,146.03,145.97,2.4174]
[1750863146265,49.32,146.03,145.97,10.86338996]
[1750863146570,49.32,146.03,146.02,6.8446]
[1750863146770,6.8435,146.05,145.98,2.2902]
[1750863146959,56.46233936,146.07,146.03,6.8438]
[1750863147268,6.8437,146.04,145.98,17.87852932]
[1750863147469,7.14233936,146.05,146.0,6.8452]
[1750863147663,13.98663936,146.03,145.97,10.86338996]
[1750863147856,7.14233936,146.05,145.97,10.86338996]
[1750863148258,6.8442,146.03,145.97,10.86338996]
[1750863148463,7.14233936,146.05,145.99,6.8457]
[1750863148766,6.845,146.02,145.99,6.8457]
[1750863150669,6.845,146.02,146.0,6.8455]
[1750863150966,7.14233936,146.05,145.97,2.4174]
[1750863151368,6.8443,146.03,146.0,6.8455]
[1750863151564,7.14233936,146.05,146.0,6.8455]
[1750863152972,6.8445,146.03,146.0,6.8455]
[1750863153177,7.14233936,146.05,146.0,6.8455]
[1750863153677,6.8448,146.02,145.99,6.8458]
[1750863153867,7.14233936,146.05,145.97,2.4174]
[1750863154067,7.14233936,146.05,146.01,6.8447]
[1750863154267,7.14233936,146.05,145.97,2.4174]
[1750863154971,6.8444,146.03,146.01,6.845]
[1750863155175,9.53343936,146.08,146.0,7.14233936]
[1750863155378,55.94233936,146.08,146.0,7.14233936]
[1750863155575,6.8425,146.07,146.04,6.8432]
[1750863156278,6.8427,146.06,146.0,7.14233936]
[1750863156673,6.8427,146.06,146.03,6.8437]
[1750863157177,6.8427,146.06,146.0,7.14233936]
[1750863157374,6.8424,146.07,146.0,7.14233936]
[1750863157574,7.14233936,146.1,146.0,7.14233936]
[1750863157780,55.94233936,146.1,146.02,7.14233936]
[1750863157983,55.641,146.1,146.07,6.8419]
[1750863158177,48.8,146.1,146.02,9.57983936]
[1750863158575,6.8414,146.09,146.02,9.57983936]
[1750863158879,48.8,146.1,146.02,9.57983936]
[1750863159472,6.8414,146.09,146.02,2.4375]
[1750863159681,6.8414,146.09,146.02,9.57983936]
[1750863159876,55.6411,146.1,146.02,9.57983936]
[1750863160683,55.6411,146.1,146.07,6.842]
[1750863160888,48.8,146.1,146.02,9.57983936]
[1750863161185,48.8,146.1,146.09,6.8413]
[1750863161376,6.8398,146.13,146.04,7.14233936]
[1750863161575,55.92233936,146.14,146.09,6.841]
[1750863162175,6.8397,146.13,146.1,6.8405]
[1750863162376,55.92233936,146.14,146.1,6.8405]
[1750863162577,48.78,146.14,146.1,6.8405]
[1750863162883,6.8399,146.12,146.1,6.8405]
[1750863163087,55.92233936,146.14,146.1,6.8405]
[1750863163278,55.92233936,146.14,146.09,6.8411]
[1750863163485,7.14233936,146.12,146.05,2.4344]
[1750863163885,6.8406,146.11,146.08,6.8413]
[1750863164077,7.14233936,146.12,146.05,2.4344]
[1750863164276,48.78,146.14,146.05,9.57673936]
[1750863164886,48.78,146.14,146.12,6.8396]
[1750863165186,55.92233936,146.14,146.05,9.57673936]
[1750863166481,48.78,146.14,146.06,48.78]
[1750863166886,6.8401,146.12,146.09,6.841]
[1750863167193,7.14233936,146.13,146.06,48.78]
[1750863167880,6.8401,146.12,146.09,6.8409]
[1750863168193,48.78,146.14,146.06,48.78]
[1750863168390,6.8401,146.12,146.09,6.8409]
[1750863168584,55.92233936,146.14,146.05,2.4344]
[1750863168890,6.84,146.12,146.05,2.4344]
[1750863169486,13.98193936,146.13,146.1,6.8406]
[1750863169690,6.8396,146.13,146.05,2.4344]
[1750863169888,6.8396,146.13,146.1,6.8406]
[1750863170586,6.84,146.12,146.1,6.8406]
[1750863170788,7.14233936,146.13,146.05,2.4344]
[1750863171389,6.8408,146.1,146.07,6.842]
[1750863171889,6.8405,146.11,146.08,6.8414]
[1750863172081,6.8405,146.11,146.05,2.4344]
[1750863172284,7.14233936,146.13,146.05,2.4344]
[1750863172484,6.8404,146.11,146.05,2.4344]
[1750863173082,6.8404,146.11,146.08,6.8415]
[1750863173587,6.8409,146.1,146.07,6.8421]
[1750863173887,7.14233936,146.09,146.02,2.4375]
[1750863174085,7.14233936,146.09,146.06,6.8426]
[1750863174286,7.14233936,146.1,146.06,6.8426]
[1750863174680,7.14233936,146.1,146.05,6.843]
[1750863174681,6.8421,146.08,146.05,6.843]
[1750863175184,7.14233936,146.08,146.01,51.1483]